fUSD/lending_fUSD_20240222
["ID","MTS","AMOUNT","RATE_DAILY","PERIOD"]
[314860929,1708597871289,-387.52009432,0.0003589,2]
[314860930,1708597871298,-1156.18,0.0003589,2]
[314860931,1708597871308,-500.0,0.0003589,2]
[314860932,1708597871317,-500.0,0.0003589,2]
[314860933,1708597871326,-517.96449791,0.0003589,2]
[314860934,1708597871335,-990.95,0.0003589,2]
[314860935,1708597871344,-1463.76,0.0003589,2]
[314860936,1708597871354,-151.0,0.0003589,7]
[314860937,1708597871363,-500.0,0.0003589,2]
[314860938,1708597871371,-151.0,0.0003589,7]
[314860939,1708597871381,-500.0,0.0003589,2]
[314860940,1708597871392,-500.0,0.0003589,2]
[314860941,1708597871401,-791.39,0.0003589,2]
[314860942,1708597871410,-151.0,0.0003589,7]
[314860943,1708597871419,-151.0,0.0003589,7]
[314860944,1708597871428,-500.0,0.0003589,2]
[314860945,1708597871437,-1200.84,0.0003589,2]
[314860946,1708597871446,-500.0,0.0003589,2]
[314860947,1708597871456,-151.0,0.0003589,7]
[314860948,1708597871466,-544.82065151,0.0003589,2]
[314860949,1708597871475,-151.0,0.0003589,7]
[314860950,1708597871485,-500.0,0.0003589,2]
[314860951,1708597871495,-500.0,0.0003589,2]
[314860952,1708597871507,-500.0,0.0003589,2]
[314860953,1708597871516,-500.0,0.0003589,2]
[314860954,1708597871527,-500.0,0.0003589,2]
[314860955,1708597871536,-500.0,0.0003589,2]
[314860956,1708597871545,-865.54,0.0003589,2]
[314860957,1708597871554,-1198.9,0.0003589,2]
[314860958,1708597871564,-755.18,0.0003589,2]
[314860959,1708597871586,-1002.0,0.0003589,2]
[314860960,1708597871595,-500.0,0.0003589,2]
[314860961,1708597871605,-500.0,0.0003589,2]
[314860962,1708597871614,-500.0,0.0003589,2]
[314860963,1708597871623,-500.0,0.0003589,2]
[314860964,1708597871633,-500.0,0.0003589,2]
[314860965,1708597871643,-580.45,0.0003589,2]
[314860966,1708597871652,-500.0,0.0003589,2]
[314860967,1708597871661,-500.0,0.0003589,2]
[314860968,1708597871672,-558.03,0.0003589,2]
[314860969,1708597871681,-500.0,0.0003589,7]
[314860970,1708597871690,-500.0,0.0003589,7]
[314860971,1708597871701,-803.39,0.0003589,2]
[314860972,1708597871710,-494.48112817,0.0003589,2]
[314860973,1708597871720,-500.0,0.0003589,7]
[314860974,1708597871729,-500.0,0.0003589,7]
[314860975,1708597871739,-500.0,0.0003589,2]
[314860976,1708597871748,-744.06,0.0003589,2]
[314860977,1708597871758,-500.0,0.0003589,2]
[314860978,1708597871767,-500.0,0.0003589,2]
[314860979,1708597871777,-500.0,0.0003589,2]
[314860980,1708597871786,-500.0,0.0003589,2]
[314860981,1708597871796,-613.79,0.0003589,2]
[314860982,1708597871944,-500.0,0.0003589,2]
[314860983,1708597871955,-164.940406,0.0003589,7]
[314860984,1708597871964,-164.940406,0.0003589,7]
[314860985,1708597871980,-164.940406,0.0003589,7]
[314860986,1708597871989,-164.940406,0.0003589,7]
[314860987,1708597871999,-500.0,0.0003589,2]
[314860988,1708597872009,-500.0,0.0003589,2]
[314860989,1708597872019,-500.0,0.0003589,2]
[314860990,1708597872029,-500.0,0.0003589,2]
[314860991,1708597872038,-1020.57,0.0003589,2]
[314860992,1708597872047,-500.0,0.0003589,2]
[314860993,1708597872056,-548.52,0.0003589,2]
[314860994,1708597872066,-500.0,0.0003589,2]
[314860995,1708597872075,-500.0,0.0003589,2]
[314860996,1708597872083,-1187.0,0.0003589,2]
[314860997,1708597872093,-1301.9,0.0003589,2]
[314860998,1708597872102,-500.0,0.0003589,2]
[314860999,1708597872111,-500.0,0.0003589,2]
[314861000,1708597872121,-500.0,0.0003589,2]
[314861001,1708597872131,-276.87907646,0.0003589,2]
[314861002,1708597872141,-739.25,0.0003589,2]
[314861003,1708597872153,-500.0,0.0003589,2]
[314861004,1708597872163,-500.0,0.0003589,2]
[314861005,1708597872173,-253.89827,0.0003589,7]
[314861006,1708597872182,-253.89827,0.0003589,7]
[314861007,1708597872191,-205.701602,0.0003589,7]
[314861008,1708597872201,-205.701602,0.0003589,7]
[314861009,1708597872210,-500.0,0.0003589,2]
[314861010,1708597872219,-156.990818,0.0003589,7]
[314861011,1708597872228,-500.0,0.0003589,2]
[314861012,1708597872238,-156.990818,0.0003589,7]
[314861013,1708597872248,-500.0,0.0003589,2]
[314861014,1708597872259,-593.9,0.0003589,2]
[314861015,1708597872270,-205.701602,0.0003589,7]
[314861016,1708597872280,-500.0,0.0003589,2]
[314861017,1708597872289,-205.701602,0.0003589,7]
[314861018,1708597872298,-156.990818,0.0003589,7]
[314861019,1708597872307,-156.990818,0.0003589,7]
[314861020,1708597872317,-564.12,0.0003589,2]
[314861021,1708597872326,-500.0,0.0003589,2]
[314861022,1708597872335,-1209.41,0.0003589,2]
[314861023,1708597872344,-151.0,0.0003589,7]
[314861024,1708597872354,-151.0,0.0003589,7]
[314861025,1708597872363,-253.89827,0.0003589,7]
[314861026,1708597872372,-253.89827,0.0003589,7]
[314861027,1708597872381,-500.0,0.0003589,2]
[314861028,1708597872390,-500.0,0.0003589,2]
[314861029,1708597872399,-500.0,0.0003589,2]
[314861030,1708597872412,-1183.46,0.0003589,2]
[314861031,1708597872422,-500.0,0.0003589,2]
[314861032,1708597872433,-500.0,0.0003589,2]
[314861033,1708597872442,-1330.65,0.0003589,2]
[314861034,1708597872453,-500.0,0.0003589,2]
[314861035,1708597872463,-500.0,0.0003589,2]
[314861036,1708597872473,-3353.18,0.0003589,2]
[314861037,1708597872483,-514.098445,0.0003589,2]
[314861038,1708597872493,-514.098445,0.0003589,2]
[314861039,1708597872507,-267.82305899,0.0003589,2]
[314861040,1708597872517,-500.0,0.0003589,2]
[314861041,1708597872526,-900.14,0.0003589,2]
[314861042,1708597872535,-500.0,0.0003589,2]
[314861043,1708597872546,-151.0,0.0003589,7]
[314861044,1708597872556,-151.0,0.0003589,7]
[314861045,1708597872565,-514.098445,0.0003589,2]
[314861046,1708597872574,-514.098445,0.0003589,2]
[314861047,1708597872585,-1516.03,0.0003589,2]
[314861048,1708597872596,-540.41,0.0003589,2]
[314861049,1708597872605,-500.0,0.0003589,2]
[314861050,1708597872614,-500.0,0.0003589,2]
[314861051,1708597872623,-500.0,0.0003589,2]
[314861052,1708597872633,-1542.37,0.0003589,2]
[314861053,1708597872642,-702.67,0.0003589,2]
[314861054,1708597872651,-918.41,0.0003589,2]
[314861055,1708597872661,-500.0,0.0003589,2]
[314861056,1708597872672,-926.53,0.0003589,2]
[314861057,1708597872681,-151.0,0.0003589,7]
[314861058,1708597872694,-151.0,0.0003589,7]
[314861059,1708597872705,-500.0,0.0003589,2]
[314861060,1708597872714,-7726.23,0.0003589,2]
[314861061,1708597872724,-151.0,0.0003589,7]
[314861062,1708597872733,-151.0,0.0003589,7]
[314861063,1708597872742,-151.0,0.0003589,7]
[314861064,1708597872752,-151.0,0.0003589,7]
[314861065,1708597872762,-1523.17,0.0003589,2]
[314861066,1708597872771,-513.8991,0.0003589,2]
[314861067,1708597872780,-500.0,0.0003589,2]
[314861068,1708597872790,-500.0,0.0003589,2]
[314861069,1708597872800,-500.0,0.0003589,2]
[314861070,1708597872809,-500.0,0.0003589,2]
[314861071,1708597872819,-636.34,0.0003589,2]
[314861072,1708597872829,-500.0,0.0003589,2]
[314861073,1708597872838,-708.467553,0.0003589,7]
[314861074,1708597872847,-708.467553,0.0003589,7]
[314861075,1708597872856,-742.49,0.0003589,2]
[314861076,1708597872867,-2922.05,0.0003589,2]
[314861077,1708597872877,-8775.06,0.0003589,2]
[314861078,1708597872887,-252.97,0.0003589,2]
[314861079,1708597872896,-708.467553,0.0003589,7]
[314861080,1708597872906,-708.467553,0.0003589,7]
[314861081,1708597872915,-608.64,0.0003589,2]
[314861082,1708597872925,-320.098904,0.0003589,7]
[314861083,1708597872934,-320.098904,0.0003589,7]
[314861084,1708597872944,-528.21,0.0003589,2]
[314861085,1708597872954,-320.098904,0.0003589,7]
[314861086,1708597872963,-694.79,0.0003589,2]
[314861087,1708597872973,-320.098904,0.0003589,7]
[314861088,1708597872982,-1512.14,0.0003589,2]
[314861089,1708597872991,-500.0,0.0003589,2]
[314861090,1708597873001,-554.39,0.0003589,2]
[314861091,1708597873010,-241.520072,0.0003589,7]
[314861092,1708597873019,-241.520072,0.0003589,7]
[314861093,1708597873028,-241.520072,0.0003589,7]
[314861094,1708597873038,-500.0,0.0003589,2]
[314861095,1708597873048,-241.520072,0.0003589,7]
[314861096,1708597873057,-151.0,0.0003589,7]
[314861097,1708597873066,-151.0,0.0003589,7]
[314861098,1708597873075,-732.84,0.0003589,2]
[314861099,1708597873085,-500.0,0.0003589,2]
[314861100,1708597873094,-8214.7,0.0003589,2]
[314861101,1708597873104,-500.0,0.0003589,2]
[314861102,1708597873115,-500.0,0.0003589,2]
[314861103,1708597873125,-555.31,0.0003589,2]
[314861104,1708597873134,-940.48,0.0003589,2]
[314861105,1708597873144,-500.0,0.0003589,2]
[314861106,1708597873153,-964.63,0.0003589,2]
[314861107,1708597873162,-20726.17,0.0003589,2]
[314861108,1708597873172,-151.0,0.0003589,7]
[314861109,1708597873181,-151.0,0.0003589,7]
[314861110,1708597873191,-500.0,0.0003589,2]
[314861111,1708597873201,-1010.66,0.0003589,2]
[314861112,1708597873210,-610.55,0.0003589,2]
[314861113,1708597873219,-3447.89,0.0003589,2]
[314861114,1708597873229,-500.0,0.0003589,2]
[314861115,1708597873238,-880.8,0.0003589,2]
[314861116,1708597873248,-1684.38,0.0003589,2]
[314861117,1708597873257,-619.75209196,0.0003589,2]
[314861118,1708597873265,-500.0,0.0003589,2]
[314861119,1708597873275,-770.87,0.0003589,2]
[314861120,1708597873284,-1122.87,0.0003589,2]
[314861121,1708597873293,-500.0,0.0003589,2]
[314861122,1708597873302,-2754.89,0.0003589,2]
[314861123,1708597873311,-4906.95,0.0003589,2]
[314861124,1708597873321,-1144.83,0.0003589,2]
[314861125,1708597873330,-779.6,0.0003589,2]
[314861126,1708597873339,-500.0,0.0003589,2]
[314861127,1708597873349,-1227.85,0.0003589,2]
[314861128,1708597873358,-916.269939,0.0003589,7]
[314861129,1708597873368,-916.269939,0.0003589,7]
[314861130,1708597873377,-500.0,0.0003589,2]
[314861131,1708597873386,-500.0,0.0003589,2]
[314861132,1708597873395,-916.269939,0.0003589,7]
[314861133,1708597873405,-916.269939,0.0003589,7]
[314861134,1708597873414,-707.16,0.0003589,2]
[314861135,1708597873424,-47038.29,0.0003589,2]
[314861136,1708597873433,-1257.3,0.0003589,2]
[314861137,1708597873443,-795.43,0.0003589,2]
[314861138,1708597873452,-563.8,0.0003589,2]
[314861139,1708597873462,-560.41,0.0003589,2]
[314861140,1708597873472,-500.0,0.0003589,2]
[314861141,1708597873481,-1329.24,0.0003589,2]
[314861142,1708597873492,-500.0,0.0003589,2]
[314861143,1708597873512,-1062.54,0.0003589,2]
[314861144,1708597873526,-500.0,0.0003589,2]
[314861145,1708597873537,-500.0,0.0003589,2]
[314861146,1708597873547,-837.15,0.0003589,2]
[314861147,1708597873557,-500.0,0.0003589,2]
[314861148,1708597873567,-1789.32,0.0003589,2]
[314861149,1708597873578,-666.79,0.0003589,2]
[314861150,1708597873588,-2082.29,0.0003589,2]
[314861151,1708597873597,-500.0,0.0003589,2]
[314861152,1708597873607,-185.776177,0.0003589,7]
[314861153,1708597873616,-1733.23,0.0003589,2]
[314861154,1708597873626,-185.776177,0.0003589,7]
[314861155,1708597873636,-7840.23,0.0003589,2]
[314861156,1708597873645,-500.0,0.0003589,2]
[314861157,1708597873655,-3035.77,0.0003589,2]
[314861158,1708597873665,-185.776177,0.0003589,7]
[314861159,1708597873674,-185.776177,0.0003589,7]
[314861160,1708597873683,-500.0,0.0003589,2]
[314861161,1708597873693,-586.69,0.0003589,2]
[314861162,1708597873702,-1705.77,0.0003589,2]
[314861163,1708597873712,-500.0,0.0003589,2]
[314861164,1708597873722,-500.0,0.0003589,2]
[314861165,1708597873731,-1198.16,0.0003589,2]
[314861166,1708597873741,-481.191766,0.0003589,7]
[314861167,1708597873750,-481.191766,0.0003589,7]
[314861168,1708597873762,-500.0,0.0003589,2]
[314861169,1708597873771,-481.191766,0.0003589,7]
[314861170,1708597873781,-481.191766,0.0003589,7]
[314861171,1708597873790,-566.05,0.0003589,2]
[314861172,1708597873800,-500.0,0.0003589,2]
[314861173,1708597873809,-1092.19,0.0003589,2]
[314861174,1708597873818,-500.0,0.0003589,2]
[314861175,1708597873828,-500.0,0.0003589,2]
[314861176,1708597873837,-5707.77,0.0003589,2]
[314861177,1708597873847,-1232.71,0.0003589,2]
[314861178,1708597873856,-500.0,0.0003589,2]
[314861179,1708597873866,-4240.78,0.0003589,2]
[314861180,1708597873875,-500.0,0.0003589,2]
[314861181,1708597873884,-3006.07,0.0003589,2]
[314861182,1708597873893,-500.0,0.0003589,2]
[314861183,1708597873903,-523.377539,0.0003589,7]
[314861184,1708597873912,-523.377539,0.0003589,7]
[314861185,1708597873922,-500.0,0.0003589,2]
[314861186,1708597873932,-967.11,0.0003589,2]
[314861187,1708597873942,-500.0,0.0003589,2]
[314861188,1708597873951,-1384.32,0.0003589,2]
[314861189,1708597873961,-500.0,0.0003589,2]
[314861190,1708597873970,-839.4,0.0003589,2]
[314861191,1708597873980,-686.86,0.0003589,2]
[314861192,1708597873989,-523.377539,0.0003589,7]
[314861193,1708597873998,-523.377539,0.0003589,7]
[314861194,1708597874008,-500.0,0.0003589,2]
[314861195,1708597874018,-10453.25,0.0003589,2]
[314861196,1708597874027,-2440.22,0.0003589,2]
[314861197,1708597874037,-500.0,0.0003589,2]
[314861198,1708597874046,-2691.461799,0.0003589,7]
[314861199,1708597874055,-2691.461799,0.0003589,7]
[314861200,1708597874065,-500.0,0.0003589,2]
[314861201,1708597874075,-500.0,0.0003589,2]
[314861202,1708597874084,-1182.22,0.0003589,2]
[314861203,1708597874094,-500.0,0.0003589,2]
[314861204,1708597874103,-2691.461799,0.0003589,7]
[314861205,1708597874114,-500.0,0.0003589,2]
[314861206,1708597874123,-2691.461799,0.0003589,7]
[314861207,1708597874132,-1024.47,0.0003589,2]
[314861208,1708597874143,-758.2,0.0003589,2]
[314861209,1708597874152,-541.1,0.0003589,2]
[314861210,1708597874161,-552.3,0.0003589,2]
[314861211,1708597874170,-436.296255,0.0003589,7]
[314861212,1708597874180,-436.296255,0.0003589,7]
[314861213,1708597874189,-500.0,0.0003589,2]
[314861214,1708597874198,-2830.92,0.0003589,2]
[314861215,1708597874211,-162.127582,0.0003589,7]
[314861216,1708597874220,-14563.4,0.0003589,2]
[314861217,1708597874230,-162.127582,0.0003589,7]
[314861218,1708597874239,-10922.43,0.0003589,2]
[314861219,1708597874248,-500.0,0.0003589,2]
[314861220,1708597874257,-500.0,0.0003589,2]
[314861221,1708597874267,-436.296255,0.0003589,7]
[314861222,1708597874277,-250.0,0.0003589,2]
[314861223,1708597874286,-162.127582,0.0003589,7]
[314861224,1708597874295,-436.296255,0.0003589,7]
[314861225,1708597874304,-2921.556529,0.0003589,7]
[314861226,1708597874313,-162.127582,0.0003589,7]
[314861227,1708597874324,-2921.556529,0.0003589,7]
[314861228,1708597874333,-500.0,0.0003589,2]
[314861229,1708597874343,-500.0,0.0003589,2]
[314861230,1708597874352,-4965.81,0.0003589,2]
[314861231,1708597874362,-2156.96,0.0003589,2]
[314861232,1708597874371,-3218.52,0.0003589,2]
[314861233,1708597874380,-2921.556529,0.0003589,7]
[314861234,1708597874390,-2921.556529,0.0003589,7]
[314861235,1708597874399,-705.29,0.0003589,2]
[314861236,1708597874408,-587.97,0.0003589,2]
[314861237,1708597874418,-506.36,0.0003589,2]
[314861238,1708597874428,-500.0,0.0003589,2]
[314861239,1708597874437,-620.38578392,0.0003589,2]
[314861240,1708597874446,-821.19,0.0003589,2]
[314861241,1708597874457,-500.0,0.0003589,2]
[314861242,1708597874467,-500.0,0.0003589,2]
[314861243,1708597874477,-667.16,0.0003589,2]
[314861244,1708597874487,-500.0,0.0003589,2]
[314861245,1708597874497,-2771.45,0.0003589,2]
[314861246,1708597874509,-10667.99,0.0003589,2]
[314861247,1708597874519,-2109.47,0.0003589,2]
[314861248,1708597874528,-14384.9,0.0003589,2]
[314861249,1708597874537,-520.00647721,0.0003589,2]
[314861250,1708597874548,-151.0,0.0003589,7]
[314861251,1708597874557,-151.0,0.0003589,7]
[314861252,1708597874566,-1062.433765,0.0003589,7]
[314861253,1708597874576,-1062.433765,0.0003589,7]
[314861254,1708597874587,-1511.85,0.0003589,2]
[314861255,1708597874597,-500.0,0.0003589,2]
[314861256,1708597874606,-2861.97,0.0003589,2]
[314861257,1708597874615,-500.0,0.0003589,2]
[314861258,1708597874625,-196.58231249,0.0003589,2]
[314861259,1708597874634,-1062.433765,0.0003589,7]
[314861260,1708597874643,-1062.433765,0.0003589,7]
[314861261,1708597874652,-500.0,0.0003589,2]
[314861262,1708597874661,-500.0,0.0003589,2]
[314861263,1708597874670,-500.0,0.0003589,2]
[314861264,1708597874679,-1613.0,0.0003589,2]
[314861265,1708597874688,-500.0,0.0003589,2]
[314861266,1708597874698,-8455.17,0.0003589,2]
[314861267,1708597874709,-500.0,0.0003589,2]
[314861268,1708597874719,-4185.4,0.0003589,2]
[314861269,1708597874728,-533.81983878,0.0003589,2]
[314861270,1708597874737,-305.565753,0.0003589,7]
[314861271,1708597874747,-560.61,0.0003589,2]
[314861272,1708597874757,-305.565753,0.0003589,7]
[314861273,1708597874769,-500.0,0.0003589,2]
[314861274,1708597874779,-500.0,0.0003589,2]
[314861275,1708597874789,-946.76,0.0003589,2]
[314861276,1708597874798,-305.565753,0.0003589,7]
[314861277,1708597874808,-305.565753,0.0003589,7]
[314861278,1708597874818,-895.59,0.0003589,2]
[314861279,1708597874829,-655.68,0.0003589,2]
[314861280,1708597874840,-160.184302,0.0003589,7]
[314861281,1708597874850,-500.0,0.0003589,2]
[314861282,1708597874861,-500.0,0.0003589,2]
[314861283,1708597874872,-1517.53,0.0003589,2]
[314861284,1708597874882,-500.0,0.0003589,2]
[314861285,1708597874892,-832.83,0.0003589,2]
[314861286,1708597874901,-2838.91,0.0003589,2]
[314861287,1708597874911,-500.0,0.0003589,2]
[314861288,1708597874920,-817.54,0.0003589,2]
[314861289,1708597874930,-2790.85,0.0003589,2]
[314861290,1708597874940,-800.67,0.0003589,2]
[314861291,1708597874949,-979.48,0.0003589,2]
[314861292,1708597874960,-20259.83,0.0003589,2]
[314861293,1708597874970,-500.0,0.0003589,2]
[314861294,1708597874979,-764.41,0.0003589,2]
[314861295,1708597874989,-500.0,0.0003589,2]
[314861296,1708597874998,-2426.16,0.0003589,2]
[314861297,1708597875008,-500.0,0.0003589,2]
[314861298,1708597875018,-1341.35,0.0003589,2]
[314861299,1708597875028,-5923.453846,0.0003589,7]
[314861300,1708597875037,-5923.453846,0.0003589,7]
[314861301,1708597875047,-500.0,0.0003589,2]
[314861302,1708597875057,-1886.34,0.0003589,2]
[314861303,1708597875066,-5923.453846,0.0003589,7]
[314861304,1708597875075,-5923.453846,0.0003589,7]
[314861305,1708597875085,-500.0,0.0003589,2]
[314861306,1708597875094,-14467.95087649,0.0003589,2]
[314861307,1708597875938,-456.0336,0.0003589,2]
[314861308,1708597875953,-883.28552351,0.0003589,2]
[314861309,1708597875963,-153.20047649,0.0003589,2]
[314861310,1708597875975,-487.87952351,0.0003589,2]
[314861311,1708597875985,-1112.46599249,0.0003589,2]
[314861312,1708597876002,-428.21400751,0.0003589,2]
[314861313,1708597876012,-500.0,0.0003589,2]
[314861314,1708597876021,-733.47,0.0003589,2]
[314861315,1708597876032,-2694.557204,0.0003589,7]
[314861316,1708597876041,-2694.557204,0.0003589,7]
[314861317,1708597876050,-500.0,0.0003589,2]
[314861318,1708597876060,-151.0,0.0003589,7]
[314861319,1708597876069,-1729.16,0.0003589,2]
[314861320,1708597876078,-236.149957,0.0003589,7]
[314861321,1708597876088,-565.32,0.0003589,2]
[314861322,1708597876099,-500.0,0.0003589,2]
[314861323,1708597876111,-500.0,0.0003589,2]
[314861324,1708597876120,-500.0,0.0003589,2]
[314861325,1708597876131,-2694.557204,0.0003589,7]
[314861326,1708597876141,-1175.86,0.0003589,2]
[314861327,1708597876151,-2694.557204,0.0003589,7]
[314861328,1708597876160,-500.0,0.0003589,2]
[314861329,1708597876170,-500.0,0.0003589,2]
[314861330,1708597876179,-500.0,0.0003589,2]
[314861331,1708597876188,-274.900625,0.0003589,7]
[314861332,1708597876197,-274.900625,0.0003589,7]
[314861333,1708597876208,-95.51252624,0.0003589,2]
[314861334,1708597877574,-150.0,0.00035164,2]
[314861335,1708597877586,-624.91044193,0.00035616,2]
[314861336,1708597877595,-1987.037,0.00035644,2]
[314861337,1708597877605,-404.48747376,0.0003589,2]
[314861338,1708597877615,-2826.93831601,0.0003589,2]
[314861339,1708597877628,-404.20345887,0.0003589,2]
[314861340,1708597877645,-258.24345965,0.0003589,2]
[314861341,1708597877657,-1287.03476547,0.0003589,2]
[314861342,1708597877667,-274.900625,0.0003589,7]
[314861343,1708597877677,-299.9968661,0.0003589,2]
[314861344,1708597877693,-726.3931339,0.0003589,2]
[314861345,1708597877703,-274.900625,0.0003589,7]
[314861346,1708597877712,-4545.61,0.0003589,2]
[314861347,1708597877722,-8530.35444778,0.0003589,2]
[314861348,1708597877734,-658.12555222,0.0003589,2]
[314861349,1708597877743,-968.7,0.0003589,2]
[314861350,1708597877753,-500.0,0.0003589,2]
[314861351,1708597877763,-1567.4,0.0003589,2]
[314861352,1708597877773,-563.01,0.0003589,2]
[314861353,1708597877782,-1636.81,0.0003589,2]
[314861354,1708597877791,-500.0,0.0003589,2]
[314861355,1708597877801,-500.0,0.0003589,2]
[314861356,1708597877811,-444.502205,0.0003589,7]
[314861357,1708597877820,-444.502205,0.0003589,7]
[314861358,1708597877830,-1322.84,0.0003589,2]
[314861359,1708597877839,-500.0,0.0003589,2]
[314861360,1708597877849,-500.0,0.0003589,2]
[314861361,1708597877860,-729.13,0.0003589,2]
[314861362,1708597877870,-444.502205,0.0003589,7]
[314861363,1708597877880,-545.94,0.0003589,2]
[314861364,1708597877890,-444.502205,0.0003589,7]
[314861365,1708597877899,-631.890425,0.0003589,7]
[314861366,1708597877910,-631.890425,0.0003589,7]
[314861367,1708597877919,-918.98,0.0003589,2]
[314861368,1708597877929,-1245.97,0.0003589,2]
[314861369,1708597877939,-849.35,0.0003589,2]
[314861370,1708597877949,-8534.21,0.0003589,2]
[314861371,1708597877959,-500.0,0.0003589,2]
[314861372,1708597877968,-1918.84,0.0003589,2]
[314861373,1708597877978,-581.39,0.0003589,2]
[314861374,1708597877988,-631.890425,0.0003589,7]
[314861375,1708597877997,-1701.48,0.0003589,2]
[314861376,1708597878007,-631.890425,0.0003589,7]
[314861377,1708597878016,-1056.11,0.0003589,2]
[314861378,1708597878026,-500.0,0.0003589,2]
[314861379,1708597878036,-1576.96,0.0003589,2]
[314861380,1708597878045,-582.71,0.0003589,2]
[314861381,1708597878055,-896.73,0.0003589,2]
[314861382,1708597878065,-1395.08,0.0003589,2]
[314861383,1708597878074,-500.0,0.0003589,2]
[314861384,1708597878084,-1007.18,0.0003589,2]
[314861385,1708597878096,-151.0,0.0003589,7]
[314861386,1708597878107,-151.0,0.0003589,7]
[314861387,1708597878117,-1445.9,0.0003589,2]
[314861388,1708597878127,-1450.50148199,0.0003589,2]
[314861389,1708597878141,-2406.57851801,0.0003589,2]
[314861390,1708597878150,-718.22,0.0003589,2]
[314861391,1708597878159,-500.0,0.0003589,2]
[314861392,1708597878168,-286.22982601,0.0003589,2]
[314861393,1708597883699,750.0,0.00025,3]
[314861403,1708598318338,2196.14295087,0.0002523,3]
[314861408,1708598485707,500.0,0.00025,3]
[314861409,1708598503402,500.0,0.00027,3]
[314861432,1708599031672,-748.436918,0.0003151,4]
[314861433,1708599031858,-1115.57470933,0.0003151,4]
[314861434,1708599031868,-345.18116793,0.00031515,2]
[314861435,1708599031881,-221.08883207,0.00031515,2]
[314861436,1708599031891,-217.0,0.00032759,2]
[314861437,1708599031901,-250.0,0.00032778,2]
[314861438,1708599031910,-1345.79,0.000328,2]
[314861439,1708599031920,-651.74956774,0.0003283,4]
[314861440,1708599031929,-427.0,0.00032858,2]
[314861441,1708599031939,-166.15,0.00032877,2]
[314861442,1708599031949,-152.0,0.00032904,3]
[314861443,1708599031959,-1000.0,0.00033335,2]
[314861444,1708599031969,-250.0,0.00033354,2]
[314861445,1708599031978,-2000.0,0.00033442,2]
[314861446,1708599031987,-1017.14,0.00033471,2]
[314861447,1708599031996,-1027.50235518,0.00033498,4]
[314861448,1708599032005,-21181.37666551,0.00033502,2]
[314861449,1708599032017,-15238.92110625,0.00033502,2]
[314861450,1708599032028,-138360.49618995,0.00033502,2]
[314861451,1708599032040,-1263.9620398,0.00033502,2]
[314861452,1708599032052,-2415.4026701,0.00033502,2]
[314861453,1708599032125,-257464.5479125,0.00033502,2]
[314861454,1708599032135,-714.33,0.00033504,2]
[314861455,1708599032144,-40278.03,0.00033504,2]
[314861456,1708599032154,-789.98,0.00033558,2]
[314861457,1708599032163,-150.0,0.00033565,2]
[314861458,1708599032173,-150.0,0.00033591,2]
[314861459,1708599032182,-216.65,0.00033595,120]
[314861460,1708599032191,-154.87,0.00033614,2]
[314861461,1708599032201,-150.0,0.00033656,3]
[314861462,1708599032210,-150.0,0.00033656,2]
[314861463,1708599032220,-150.0,0.00033744,2]